[Event "*** SCC Grand Prix: Titled Tuesday Blitz"]
[Site "Chess.com"]
[Date "2020.09.08"]
[Round "1"]
[White "jamalm2"]
[Black "serhanberat_ozdemir"]
[Result "0-1"]
[WhiteElo "1921"]
[BlackElo "2478"]
[TimeControl "180+1"]
[EndTime "10:07:15 PDT"]
[Termination "serhanberat_ozdemir won on time"]

1. e4 {[%clk 0:02:58.6]} 1... c5 {[%clk 0:03:00.4]} 2. g3 {[%clk 0:02:56.9]}
2... e6 {[%clk 0:02:59.5]} 3. Bg2 {[%clk 0:02:56.6]} 3... d5 {[%clk 0:02:59.2]}
4. exd5 {[%clk 0:02:55.4]} 4... exd5 {[%clk 0:03:00.1]} 5. d3 {[%clk 0:02:54.8]}
5... Nf6 {[%clk 0:02:54.6]} 6. Ne2 {[%clk 0:02:53.6]} 6... Bd6 {[%clk
0:02:48.8]} 7. Nbc3 {[%clk 0:02:52.9]} 7... d4 {[%clk 0:02:47.7]} 8. Ne4 {[%clk
0:02:51.8]} 8... Nxe4 {[%clk 0:02:47.9]} 9. Bxe4 {[%clk 0:02:51.7]} 9... O-O
{[%clk 0:02:47.5]} 10. O-O {[%clk 0:02:51.3]} 10... f5 {[%clk 0:02:45.6]} 11.
Bg2 {[%clk 0:02:50.9]} 11... Qc7 {[%clk 0:02:37]} 12. Bf4 {[%clk 0:02:46.6]}
12... Nc6 {[%clk 0:02:32.3]} 13. Qd2 {[%clk 0:02:41.9]} 13... Bd7 {[%clk
0:02:29.6]} 14. Bxd6 {[%clk 0:02:38.3]} 14... Qxd6 {[%clk 0:02:30.5]} 15. Nf4
{[%clk 0:02:37.9]} 15... Ne5 {[%clk 0:02:22.3]} 16. Rae1 {[%clk 0:02:30.4]}
16... Rae8 {[%clk 0:02:20.4]} 17. Bd5+ {[%clk 0:02:26.1]} 17... Kh8 {[%clk
0:02:14.4]} 18. Bg2 {[%clk 0:02:12.5]} 18... Bc6 {[%clk 0:02:13.4]} 19. Qd1
{[%clk 0:02:00.6]} 19... Bxg2 {[%clk 0:01:59.4]} 20. Kxg2 {[%clk 0:01:59.4]}
20... Qc6+ {[%clk 0:01:57.1]} 21. f3 {[%clk 0:01:59.3]} 21... Ng4 {[%clk
0:01:54.1]} 22. Qd2 {[%clk 0:01:22.5]} 22... Ne3+ {[%clk 0:01:52.2]} 23. Kg1
{[%clk 0:01:19.9]} 23... Nxf1 {[%clk 0:01:43.2]} 24. Rxf1 {[%clk 0:01:19.8]}
24... Re3 {[%clk 0:01:37.9]} 25. Kg2 {[%clk 0:01:17.5]} 25... Rfe8 {[%clk
0:01:35.2]} 26. h4 {[%clk 0:01:13.3]} 26... g6 {[%clk 0:01:21.3]} 27. Rf2 {[%clk
0:01:11.3]} 27... Kg7 {[%clk 0:01:19.1]} 28. b3 {[%clk 0:01:02.2]} 28... h6
{[%clk 0:01:09.6]} 29. Nh3 {[%clk 0:00:55.4]} 29... Kf6 {[%clk 0:01:01.5]} 30.
a4 {[%clk 0:00:50.6]} 30... g5 {[%clk 0:01:00.2]} 31. hxg5+ {[%clk 0:00:48.2]}
31... hxg5 {[%clk 0:01:01.1]} 32. Kh2 {[%clk 0:00:36.2]} 32... Rh8 {[%clk
0:00:52.8]} 33. g4 {[%clk 0:00:23.4]} 33... fxg4 {[%clk 0:00:36.9]} 34. fxg4+
{[%clk 0:00:20.2]} 34... Kg6 {[%clk 0:00:36.2]} 35. Kg1 {[%clk 0:00:06.5]} 35...
Rhxh3 {[%clk 0:00:34.4]} 36. Rg2 {[%clk 0:00:05.4]} 36... Rhg3 {[%clk
0:00:31.5]} 0-1

[Event "*** SCC Grand Prix: Titled Tuesday Blitz"]
[Site "Chess.com"]
[Date "2020.09.08"]
[Round "1"]
[White "r31415"]
[Black "GM_dmitrij"]
[Result "0-1"]
[WhiteElo "2452"]
[BlackElo "2920"]
[TimeControl "180+1"]
[EndTime "10:07:16 PDT"]
[Termination "GM_dmitrij won by checkmate"]

1. e4 {[%clk 0:03:00.9]} 1... e5 {[%clk 0:02:57.2]} 2. Nf3 {[%clk 0:03:00.9]}
2... Nc6 {[%clk 0:02:57.5]} 3. Bc4 {[%clk 0:03:01.5]} 3... Nf6 {[%clk
0:02:57.5]} 4. d3 {[%clk 0:03:01.4]} 4... Bc5 {[%clk 0:02:57.1]} 5. c3 {[%clk
0:03:01.9]} 5... d6 {[%clk 0:02:57.4]} 6. O-O {[%clk 0:03:02.3]} 6... O-O {[%clk
0:02:57.5]} 7. Bb3 {[%clk 0:03:02.9]} 7... a5 {[%clk 0:02:57.3]} 8. Nbd2 {[%clk
0:03:03.2]} 8... Be6 {[%clk 0:02:56.1]} 9. Re1 {[%clk 0:03:02.7]} 9... Re8
{[%clk 0:02:54.9]} 10. Nf1 {[%clk 0:03:02.5]} 10... h6 {[%clk 0:02:54.3]} 11. h3
{[%clk 0:03:02.4]} 11... d5 {[%clk 0:02:54.7]} 12. Qe2 {[%clk 0:03:01.6]} 12...
Qd7 {[%clk 0:02:52.2]} 13. Bc2 {[%clk 0:02:52]} 13... Rad8 {[%clk 0:02:49.3]}
14. Nxe5 {[%clk 0:02:29.6]} 14... Nxe5 {[%clk 0:02:42.7]} 15. d4 {[%clk
0:02:29.8]} 15... Nxe4 {[%clk 0:02:24.5]} 16. Bxe4 {[%clk 0:02:03.5]} 16... dxe4
{[%clk 0:02:25.4]} 17. dxe5 {[%clk 0:02:04.2]} 17... Bd5 {[%clk 0:02:03.4]} 18.
Bf4 {[%clk 0:02:00.6]} 18... Qf5 {[%clk 0:02:00.7]} 19. Bg3 {[%clk 0:02:00.1]}
19... Bc6 {[%clk 0:01:59]} 20. Rad1 {[%clk 0:01:56.3]} 20... Rd3 {[%clk
0:01:58.4]} 21. Rd2 {[%clk 0:01:34]} 21... Red8 {[%clk 0:01:57.4]} 22. Red1
{[%clk 0:01:33.7]} 22... Qg6 {[%clk 0:01:42.8]} 23. Kh2 {[%clk 0:01:24.4]} 23...
Bb5 {[%clk 0:01:34.3]} 24. Qe1 {[%clk 0:01:18.1]} 24... a4 {[%clk 0:01:28.4]}
25. Ne3 {[%clk 0:01:18]} 25... Bxe3 {[%clk 0:01:22.7]} 26. Qxe3 {[%clk
0:01:15.5]} 26... b6 {[%clk 0:00:51.5]} 27. Rxd3 {[%clk 0:01:10.3]} 27... exd3
{[%clk 0:00:43.7]} 28. Rd2 {[%clk 0:01:08.3]} 28... Bc4 {[%clk 0:00:42.3]} 29.
a3 {[%clk 0:01:05.5]} 29... Qf5 {[%clk 0:00:39.5]} 30. f4 {[%clk 0:01:01.7]}
30... c5 {[%clk 0:00:32.2]} 31. Bf2 {[%clk 0:01:01.1]} 31... h5 {[%clk
0:00:32.7]} 32. Qf3 {[%clk 0:00:56.2]} 32... g5 {[%clk 0:00:26.3]} 33. Be3
{[%clk 0:00:50.5]} 33... g4 {[%clk 0:00:26.2]} 34. hxg4 {[%clk 0:00:50.7]} 34...
hxg4 {[%clk 0:00:27.1]} 35. Qg3 {[%clk 0:00:51.1]} 35... Kg7 {[%clk 0:00:26]}
36. Kg1 {[%clk 0:00:47.7]} 36... Rh8 {[%clk 0:00:25.8]} 37. Kf2 {[%clk
0:00:46.4]} 37... Be6 {[%clk 0:00:22.7]} 38. Rd1 {[%clk 0:00:45.3]} 38... c4
{[%clk 0:00:20.7]} 39. Bxb6 {[%clk 0:00:44.1]} 39... Bd5 {[%clk 0:00:18.8]} 40.
Bd4 {[%clk 0:00:33.4]} 40... Kg6 {[%clk 0:00:19.2]} 41. Qe3 {[%clk 0:00:19.5]}
41... Qe4 {[%clk 0:00:16.9]} 42. Re1 {[%clk 0:00:17.3]} 42... Qxg2# {[%clk
0:00:16.4]} 0-1

[Event "*** SCC Grand Prix: Titled Tuesday Blitz"]
[Site "Chess.com"]
[Date "2020.09.08"]
[Round "1"]
[White "dopolian"]
[Black "Bigfish1995"]
[Result "0-1"]
[WhiteElo "2468"]
[BlackElo "3014"]
[TimeControl "180+1"]
[EndTime "10:07:17 PDT"]
[Termination "Bigfish1995 won by resignation"]

1. e4 {[%clk 0:02:59.2]} 1... c6 {[%clk 0:02:59.5]} 2. Nc3 {[%clk 0:02:58.5]}
2... d5 {[%clk 0:02:59.3]} 3. Nf3 {[%clk 0:02:58.9]} 3... Bg4 {[%clk 0:02:59.4]}
4. h3 {[%clk 0:02:58.8]} 4... Bxf3 {[%clk 0:02:59.4]} 5. Qxf3 {[%clk 0:02:59.7]}
5... e6 {[%clk 0:03:00]} 6. d4 {[%clk 0:02:58.9]} 6... Nd7 {[%clk 0:02:59.6]} 7.
Bd3 {[%clk 0:02:58.6]} 7... g6 {[%clk 0:02:59.4]} 8. O-O {[%clk 0:02:54.7]} 8...
Bg7 {[%clk 0:02:59.4]} 9. Be3 {[%clk 0:02:54.7]} 9... Qb6 {[%clk 0:02:57.7]} 10.
Rab1 {[%clk 0:02:40.5]} 10... Bxd4 {[%clk 0:02:46.3]} 11. Bxd4 {[%clk
0:02:41.4]} 11... Qxd4 {[%clk 0:02:46.1]} 12. exd5 {[%clk 0:02:42.1]} 12... exd5
{[%clk 0:02:40.7]} 13. Rfe1+ {[%clk 0:02:38.7]} 13... Kf8 {[%clk 0:02:40.8]} 14.
Ne2 {[%clk 0:02:26.9]} 14... Qf6 {[%clk 0:02:36]} 15. Qg3 {[%clk 0:02:23.1]}
15... Ne5 {[%clk 0:02:33.9]} 16. Nf4 {[%clk 0:02:16.3]} 16... Re8 {[%clk
0:02:29.6]} 17. Re2 {[%clk 0:01:58.3]} 17... Re7 {[%clk 0:02:01.5]} 18. Rbe1
{[%clk 0:01:53.9]} 18... Nd7 {[%clk 0:01:58.3]} 19. c3 {[%clk 0:01:48.8]} 19...
Rxe2 {[%clk 0:01:53.6]} 20. Rxe2 {[%clk 0:01:49.7]} 20... Ne7 {[%clk 0:01:52.4]}
21. Bc2 {[%clk 0:01:32.1]} 21... h5 {[%clk 0:01:44]} 22. h4 {[%clk 0:01:20.4]}
22... Nf5 {[%clk 0:01:41.9]} 23. Qh3 {[%clk 0:01:20.2]} 23... Nxh4 {[%clk
0:00:44.6]} 24. Qxd7 {[%clk 0:01:01.8]} 24... Qxf4 {[%clk 0:00:44.3]} 25. g3
{[%clk 0:00:34]} 25... Nf3+ {[%clk 0:00:43.8]} 26. Kg2 {[%clk 0:00:30.4]} 26...
Qf6 {[%clk 0:00:44.3]} 27. Re8+ {[%clk 0:00:25.2]} 27... Kg7 {[%clk 0:00:44]}
28. Rxh8 {[%clk 0:00:26.1]} 28... Kxh8 {[%clk 0:00:43.7]} 29. Bd1 {[%clk
0:00:23.8]} 29... Ne1+ {[%clk 0:00:43.4]} 30. Kg1 {[%clk 0:00:17.7]} 30... Nd3
{[%clk 0:00:43.6]} 31. Qe8+ {[%clk 0:00:14.5]} 31... Kg7 {[%clk 0:00:43.1]} 32.
Qe2 {[%clk 0:00:15.2]} 32... Nc5 {[%clk 0:00:40.4]} 33. Bc2 {[%clk 0:00:14.3]}
33... d4 {[%clk 0:00:37.4]} 34. Qc4 {[%clk 0:00:12.1]} 34... Ne6 {[%clk
0:00:37.9]} 35. cxd4 {[%clk 0:00:11.4]} 35... Qxd4 {[%clk 0:00:38.8]} 36. Qxd4+
{[%clk 0:00:09.2]} 36... Nxd4 {[%clk 0:00:38.8]} 37. Bd3 {[%clk 0:00:09.5]}
37... Kf6 {[%clk 0:00:39]} 38. Kf1 {[%clk 0:00:09.3]} 38... Ke5 {[%clk
0:00:39.3]} 39. f4+ {[%clk 0:00:08.4]} 39... Kd5 {[%clk 0:00:39.6]} 40. Kf2
{[%clk 0:00:08.6]} 40... c5 {[%clk 0:00:39.9]} 41. Ke3 {[%clk 0:00:07.6]} 41...
Nf5+ {[%clk 0:00:38.2]} 42. Kf3 {[%clk 0:00:03.5]} 42... Nd6 {[%clk 0:00:38.3]}
43. b3 {[%clk 0:00:02.8]} 43... b5 {[%clk 0:00:38.1]} 44. Bc2 {[%clk 0:00:02.6]}
44... Kd4 {[%clk 0:00:38]} 0-1

[Event "*** SCC Grand Prix: Titled Tuesday Blitz"]
[Site "Chess.com"]
[Date "2020.09.08"]
[Round "1"]
[White "SavelievAlexei"]
[Black "XDPS"]
[Result "0-1"]
[WhiteElo "2402"]
[BlackElo "2796"]
[TimeControl "180+1"]
[EndTime "10:07:19 PDT"]
[Termination "XDPS won on time"]

1. e4 {[%clk 0:02:58.1]} 1... c5 {[%clk 0:02:58.5]} 2. Nf3 {[%clk 0:02:55]} 2...
d6 {[%clk 0:02:58.8]} 3. d4 {[%clk 0:02:55.5]} 3... cxd4 {[%clk 0:02:59.7]} 4.
Nxd4 {[%clk 0:02:56.3]} 4... Nf6 {[%clk 0:03:00.4]} 5. Nc3 {[%clk 0:02:56.8]}
5... a6 {[%clk 0:03:01]} 6. Bg5 {[%clk 0:02:55.7]} 6... Nbd7 {[%clk 0:03:01]} 7.
f4 {[%clk 0:02:54.6]} 7... h6 {[%clk 0:02:57.9]} 8. Bh4 {[%clk 0:02:53.9]} 8...
Qc7 {[%clk 0:02:56.1]} 9. Qd2 {[%clk 0:02:23.5]} 9... b5 {[%clk 0:02:47.1]} 10.
Bd3 {[%clk 0:02:21.6]} 10... Bb7 {[%clk 0:02:46.7]} 11. O-O-O {[%clk 0:02:17.2]}
11... e5 {[%clk 0:02:39.2]} 12. Nf5 {[%clk 0:02:04.7]} 12... g6 {[%clk
0:02:38.9]} 13. Bxf6 {[%clk 0:02:03.3]} 13... Nxf6 {[%clk 0:02:37.7]} 14. Bxb5+
{[%clk 0:02:03.4]} 14... axb5 {[%clk 0:02:34]} 15. Nxb5 {[%clk 0:02:04.3]} 15...
Qc6 {[%clk 0:02:21.1]} 16. Nfxd6+ {[%clk 0:01:53.5]} 16... Bxd6 {[%clk 0:02:22]}
17. Nxd6+ {[%clk 0:01:53]} 17... Kf8 {[%clk 0:02:01.7]} 18. Qb4 {[%clk
0:01:52.3]} 18... Kg7 {[%clk 0:01:44.8]} 19. Qxb7 {[%clk 0:01:26.7]} 19... Qxb7
{[%clk 0:01:44.8]} 20. Nxb7 {[%clk 0:01:27.6]} 20... Rxa2 {[%clk 0:01:45.6]} 21.
Kb1 {[%clk 0:01:14.7]} 21... Rha8 {[%clk 0:01:45.1]} 22. c3 {[%clk 0:01:15.1]}
22... Nxe4 {[%clk 0:01:41.4]} 23. Rhe1 {[%clk 0:00:46.4]} 23... Nf2 {[%clk
0:01:38.3]} 24. fxe5 {[%clk 0:00:43.2]} 24... Nxd1 {[%clk 0:01:26.1]} 25. Rxd1
{[%clk 0:00:44.1]} 25... Ra1+ {[%clk 0:01:26.8]} 26. Kc2 {[%clk 0:00:44.4]}
26... Rxd1 {[%clk 0:01:27.7]} 27. Kxd1 {[%clk 0:00:45.3]} 27... Rb8 {[%clk
0:01:28.5]} 28. Nd6 {[%clk 0:00:40.6]} 28... Rxb2 {[%clk 0:01:29.4]} 29. c4
{[%clk 0:00:41]} 29... Kf8 {[%clk 0:00:30.8]} 30. g3 {[%clk 0:00:11.1]} 30...
Ke7 {[%clk 0:00:28.5]} 31. h4 {[%clk 0:00:08]} 31... f6 {[%clk 0:00:25.6]} 32.
c5 {[%clk 0:00:06]} 32... fxe5 {[%clk 0:00:23.8]} 33. Nc4 {[%clk 0:00:06.3]}
33... Rg2 {[%clk 0:00:22.1]} 34. Nxe5 {[%clk 0:00:06.4]} 34... Rxg3 {[%clk
0:00:22.7]} 35. Ke2 {[%clk 0:00:05.9]} 35... g5 {[%clk 0:00:20]} 36. hxg5 {[%clk
0:00:05.6]} 36... Rxg5 {[%clk 0:00:20.9]} 37. Nd3 {[%clk 0:00:03.1]} 37... Rg3
{[%clk 0:00:19.8]} 38. Nf4 {[%clk 0:00:02.4]} 38... Kd7 {[%clk 0:00:18.5]} 0-1

[Event "*** SCC Grand Prix: Titled Tuesday Blitz"]
[Site "Chess.com"]
[Date "2020.09.08"]
[Round "1"]
[White "ExcitingTrap"]
[Black "13MiRacLe"]
[Result "1-0"]
[WhiteElo "2298"]
[BlackElo "2590"]
[TimeControl "180+1"]
[EndTime "10:07:19 PDT"]
[Termination "ExcitingTrap won on time"]

1. e4 {[%clk 0:03:00.9]} 1... e5 {[%clk 0:02:59.3]} 2. Nf3 {[%clk 0:02:59.9]}
2... Nc6 {[%clk 0:02:53.9]} 3. Bc4 {[%clk 0:02:59.9]} 3... Nf6 {[%clk
0:02:53.6]} 4. d3 {[%clk 0:02:59.8]} 4... Bc5 {[%clk 0:02:53.5]} 5. c3 {[%clk
0:02:58.8]} 5... O-O {[%clk 0:02:53.1]} 6. Nbd2 {[%clk 0:02:56.9]} 6... d5
{[%clk 0:02:52.1]} 7. exd5 {[%clk 0:02:56.1]} 7... Nxd5 {[%clk 0:02:53]} 8. Ne4
{[%clk 0:02:56.5]} 8... Be7 {[%clk 0:02:51.9]} 9. O-O {[%clk 0:02:54.2]} 9...
Nb6 {[%clk 0:02:49.1]} 10. Bb3 {[%clk 0:02:29.6]} 10... Bg4 {[%clk 0:02:32]} 11.
h3 {[%clk 0:02:25]} 11... Bh5 {[%clk 0:02:29.7]} 12. Ng3 {[%clk 0:02:25.2]}
12... Bg6 {[%clk 0:02:29.7]} 13. Bc2 {[%clk 0:02:18.3]} 13... Qd6 {[%clk
0:02:06.6]} 14. Re1 {[%clk 0:01:52.2]} 14... Rad8 {[%clk 0:02:03.8]} 15. Ne4
{[%clk 0:01:52.6]} 15... Qd7 {[%clk 0:02:00.2]} 16. Qe2 {[%clk 0:01:50.4]} 16...
h6 {[%clk 0:01:57]} 17. Be3 {[%clk 0:01:45.7]} 17... Nd5 {[%clk 0:01:54.5]} 18.
d4 {[%clk 0:01:34.9]} 18... exd4 {[%clk 0:01:49]} 19. Bxd4 {[%clk 0:01:26.1]}
19... Nxd4 {[%clk 0:01:43]} 20. Nxd4 {[%clk 0:01:25.5]} 20... c5 {[%clk
0:01:27.5]} 21. Nf3 {[%clk 0:01:22]} 21... Qc7 {[%clk 0:01:26.6]} 22. Rad1
{[%clk 0:01:13.1]} 22... a6 {[%clk 0:01:07.5]} 23. Bb1 {[%clk 0:01:12.7]} 23...
Rfe8 {[%clk 0:01:06.7]} 24. Ng3 {[%clk 0:00:59.7]} 24... Nf4 {[%clk 0:00:54.2]}
25. Qe5 {[%clk 0:00:30.5]} 25... Qxe5 {[%clk 0:00:41]} 26. Nxe5 {[%clk
0:00:29.9]} 26... Bxb1 {[%clk 0:00:38.8]} 27. Rxb1 {[%clk 0:00:29.5]} 27... Bf6
{[%clk 0:00:34.1]} 28. Ng4 {[%clk 0:00:27.8]} 28... Rxe1+ {[%clk 0:00:16.3]} 29.
Rxe1 {[%clk 0:00:28.7]} 29... Rd2 {[%clk 0:00:07.2]} 30. Nxf6+ {[%clk
0:00:25.8]} 30... gxf6 {[%clk 0:00:07.4]} 31. Re8+ {[%clk 0:00:20]} 31... Kh7
{[%clk 0:00:07.3]} 32. Re7 {[%clk 0:00:20.3]} 32... Rxb2 {[%clk 0:00:06.5]} 33.
Rxf7+ {[%clk 0:00:19]} 33... Kg6 {[%clk 0:00:07]} 34. Rc7 {[%clk 0:00:18.8]}
34... Rxa2 {[%clk 0:00:06.2]} 35. Rxb7 {[%clk 0:00:18]} 35... Rc2 {[%clk
0:00:06.1]} 36. Ne4 {[%clk 0:00:14]} 1-0

[Event "*** SCC Grand Prix: Titled Tuesday Blitz"]
[Site "Chess.com"]
[Date "2020.09.08"]
[Round "1"]
[White "hellokostya"]
[Black "juli2512"]
[Result "1-0"]
[WhiteElo "2494"]
[BlackElo "2043"]
[TimeControl "180+1"]
[EndTime "10:07:20 PDT"]
[Termination "hellokostya won by resignation"]

1. d4 {[%clk 0:02:47.6]} 1... f5 {[%clk 0:02:58.6]} 2. g3 {[%clk 0:02:46]} 2...
Nf6 {[%clk 0:02:57.8]} 3. Bg2 {[%clk 0:02:46]} 3... g6 {[%clk 0:02:58.4]} 4. c4
{[%clk 0:02:44.4]} 4... Bg7 {[%clk 0:02:58]} 5. Nc3 {[%clk 0:02:44.4]} 5... O-O
{[%clk 0:02:57.3]} 6. Nf3 {[%clk 0:02:44.3]} 6... d6 {[%clk 0:02:57.4]} 7. O-O
{[%clk 0:02:44.4]} 7... Nc6 {[%clk 0:02:57.4]} 8. d5 {[%clk 0:02:41.4]} 8... Na5
{[%clk 0:02:57.2]} 9. Nd2 {[%clk 0:02:36.4]} 9... c5 {[%clk 0:02:56.6]} 10. Qc2
{[%clk 0:02:33.2]} 10... e5 {[%clk 0:02:40.1]} 11. dxe6 {[%clk 0:02:28.9]} 11...
Bxe6 {[%clk 0:02:38.6]} 12. Nd5 {[%clk 0:02:26.6]} 12... Nc6 {[%clk 0:02:32]}
13. e3 {[%clk 0:02:17.4]} 13... Ng4 {[%clk 0:02:20.5]} 14. a3 {[%clk 0:02:03.6]}
14... Rc8 {[%clk 0:01:58.2]} 15. h3 {[%clk 0:02:01.9]} 15... Nge5 {[%clk
0:01:56.8]} 16. Rb1 {[%clk 0:01:59.3]} 16... Nf7 {[%clk 0:01:10.6]} 17. b3
{[%clk 0:01:57.9]} 17... Ne7 {[%clk 0:00:53.8]} 18. Bb2 {[%clk 0:01:56]} 18...
Nxd5 {[%clk 0:00:47.4]} 19. cxd5 {[%clk 0:01:52.2]} 19... Bd7 {[%clk 0:00:42.6]}
20. Bxg7 {[%clk 0:01:51.9]} 20... Kxg7 {[%clk 0:00:41.1]} 21. Qc3+ {[%clk
0:01:50.9]} 21... Qf6 {[%clk 0:00:40.9]} 22. Qc2 {[%clk 0:01:40.7]} 22... b5
{[%clk 0:00:37.2]} 23. a4 {[%clk 0:01:35.9]} 23... a6 {[%clk 0:00:36.8]} 24.
Rfe1 {[%clk 0:01:34.4]} 24... Ra8 {[%clk 0:00:29.8]} 25. Nf3 {[%clk 0:01:28.8]}
25... Rfe8 {[%clk 0:00:21.7]} 26. h4 {[%clk 0:01:28]} 26... Ne5 {[%clk
0:00:17.8]} 27. Ng5 {[%clk 0:01:24.9]} 27... Nf7 {[%clk 0:00:16.2]} 28. Ne6+
{[%clk 0:01:22.1]} 28... Kg8 {[%clk 0:00:12.1]} 29. Nc7 {[%clk 0:01:20.3]} 29...
Rab8 {[%clk 0:00:12.3]} 30. Nxe8 {[%clk 0:01:19.9]} 30... Rxe8 {[%clk
0:00:12.3]} 31. Qb2 {[%clk 0:01:11.6]} 31... Qe7 {[%clk 0:00:11.8]} 32. axb5
{[%clk 0:01:09.8]} 32... axb5 {[%clk 0:00:11.4]} 33. e4 {[%clk 0:01:09.4]} 33...
f4 {[%clk 0:00:11]} 34. Qc3 {[%clk 0:00:58.7]} 34... Ne5 {[%clk 0:00:09.4]} 35.
gxf4 {[%clk 0:00:56.4]} 35... Ng4 {[%clk 0:00:09.5]} 36. Qg3 {[%clk 0:00:56]}
36... h5 {[%clk 0:00:08.5]} 37. e5 {[%clk 0:00:50.1]} 37... Rf8 {[%clk
0:00:06.6]} 38. e6 {[%clk 0:00:49.3]} 38... Be8 {[%clk 0:00:06.6]} 39. Bf3
{[%clk 0:00:42]} 39... Nf6 {[%clk 0:00:05.9]} 40. f5 {[%clk 0:00:41.8]} 40...
Kh7 {[%clk 0:00:05.3]} 41. Kh1 {[%clk 0:00:39.1]} 41... Rg8 {[%clk 0:00:05.2]}
42. fxg6+ {[%clk 0:00:37]} 42... Rxg6 {[%clk 0:00:04.4]} 43. Qf4 {[%clk
0:00:36.8]} 43... Ng8 {[%clk 0:00:02.9]} 44. Rg1 {[%clk 0:00:35.5]} 44... Rf6
{[%clk 0:00:02.7]} 45. Be4+ {[%clk 0:00:34.9]} 45... Bg6 {[%clk 0:00:02.3]} 46.
Bxg6+ {[%clk 0:00:33.4]} 46... Rxg6 {[%clk 0:00:02.7]} 47. Rxg6 {[%clk
0:00:33.9]} 47... Kxg6 {[%clk 0:00:03.3]} 48. Rg1+ {[%clk 0:00:34.1]} 1-0

[Event "*** SCC Grand Prix: Titled Tuesday Blitz"]
[Site "Chess.com"]
[Date "2020.09.08"]
[Round "1"]
[White "MariaFominykh"]
[Black "Carnivoras"]
[Result "1-0"]
[WhiteElo "2351"]
[BlackElo "2654"]
[TimeControl "180+1"]
[EndTime "10:07:22 PDT"]
[Termination "MariaFominykh won by checkmate"]

1. Nf3 {[%clk 0:03:00.9]} 1... d5 {[%clk 0:02:57.6]} 2. g3 {[%clk 0:02:59.8]}
2... Nf6 {[%clk 0:02:58.3]} 3. Bg2 {[%clk 0:03:00.3]} 3... Bf5 {[%clk
0:02:58.6]} 4. d3 {[%clk 0:03:00.6]} 4... e6 {[%clk 0:02:59.1]} 5. Nbd2 {[%clk
0:02:59.9]} 5... Be7 {[%clk 0:02:59.4]} 6. O-O {[%clk 0:03:00.5]} 6... O-O
{[%clk 0:02:59.9]} 7. Qe1 {[%clk 0:03:00.5]} 7... Nbd7 {[%clk 0:02:57.4]} 8. e4
{[%clk 0:03:00.9]} 8... dxe4 {[%clk 0:02:57.5]} 9. dxe4 {[%clk 0:03:00.7]} 9...
Bg4 {[%clk 0:02:57.8]} 10. h3 {[%clk 0:03:00.1]} 10... Bh5 {[%clk 0:02:57.7]}
11. Nc4 {[%clk 0:02:21.5]} 11... Nb6 {[%clk 0:02:32.8]} 12. Na5 {[%clk
0:02:08.4]} 12... Qc8 {[%clk 0:02:28.8]} 13. Bf4 {[%clk 0:02:00.5]} 13... Nfd7
{[%clk 0:02:14.1]} 14. e5 {[%clk 0:01:49.3]} 14... Bg6 {[%clk 0:02:04.7]} 15.
Rc1 {[%clk 0:01:11.7]} 15... Nc5 {[%clk 0:01:54.7]} 16. Bg5 {[%clk 0:00:57.6]}
16... Bxg5 {[%clk 0:01:47.6]} 17. Nxg5 {[%clk 0:00:58.5]} 17... h6 {[%clk
0:01:45.7]} 18. b4 {[%clk 0:00:52.8]} 18... hxg5 {[%clk 0:01:01.2]} 19. bxc5
{[%clk 0:00:52.2]} 19... Nd5 {[%clk 0:01:01.4]} 20. c4 {[%clk 0:00:51.7]} 20...
b6 {[%clk 0:00:55.1]} 21. cxd5 {[%clk 0:00:48.4]} 21... bxa5 {[%clk 0:00:55]}
22. d6 {[%clk 0:00:35.2]} 22... Rb8 {[%clk 0:00:48.6]} 23. Qxa5 {[%clk
0:00:34.4]} 23... c6 {[%clk 0:00:32.1]} 24. Rfd1 {[%clk 0:00:25.9]} 24... Qd7
{[%clk 0:00:30.6]} 25. Qa6 {[%clk 0:00:24.6]} 25... Rfc8 {[%clk 0:00:30.5]} 26.
Rc3 {[%clk 0:00:22.7]} 26... Rb5 {[%clk 0:00:28.1]} 27. Rdc1 {[%clk 0:00:20.5]}
27... Bf5 {[%clk 0:00:27.3]} 28. Ra3 {[%clk 0:00:20]} 28... Rb7 {[%clk
0:00:20.7]} 29. Qa4 {[%clk 0:00:19.5]} 29... Bg6 {[%clk 0:00:20]} 30. Qd4 {[%clk
0:00:19.3]} 30... Bf5 {[%clk 0:00:20.2]} 31. Qd2 {[%clk 0:00:19.4]} 31... Rcb8
{[%clk 0:00:20.4]} 32. Qxg5 {[%clk 0:00:19.2]} 32... Rb1 {[%clk 0:00:19.8]} 33.
Rxb1 {[%clk 0:00:17.6]} 33... Rxb1+ {[%clk 0:00:20.7]} 34. Kh2 {[%clk
0:00:17.9]} 34... Rb5 {[%clk 0:00:21.6]} 35. Rc3 {[%clk 0:00:17]} 35... a5
{[%clk 0:00:21.2]} 36. h4 {[%clk 0:00:17]} 36... Bg6 {[%clk 0:00:20]} 37. h5
{[%clk 0:00:16.9]} 37... Bf5 {[%clk 0:00:19.8]} 38. h6 {[%clk 0:00:16.6]} 38...
Bg6 {[%clk 0:00:20.2]} 39. hxg7 {[%clk 0:00:16.1]} 39... Kxg7 {[%clk 0:00:21.1]}
40. Qf6+ {[%clk 0:00:16]} 40... Kf8 {[%clk 0:00:21.1]} 41. Rc4 {[%clk
0:00:16.2]} 41... Kg8 {[%clk 0:00:17.1]} 42. Rh4 {[%clk 0:00:15.4]} 42... Bh7
{[%clk 0:00:17.8]} 43. Qg5+ {[%clk 0:00:14.3]} 43... Kh8 {[%clk 0:00:17.1]} 44.
Qh6 {[%clk 0:00:13.2]} 44... f6 {[%clk 0:00:17.6]} 45. Qf8# {[%clk 0:00:13.1]}
1-0